[Event "Titled Tuesday Blitz August 1 Early 2023"]
[White "Kravtsiv, Martyn"]
[Black "Timerkhanov, Alexander"]
[WhiteFideId "14113147"]
[BlackFideId "24177938"]
[WhiteElo "2867"]
[BlackElo "2652"]
[Result "1-0"]
[Round "4"]
[TimeControl "180+1"]
[Date "2023.08.01"]
[WhiteClock "0:00:17"]
[BlackClock "0:00:01"]
[Board "28"]

1. e4 {[%clk 0:03:00]}  c5 {[%clk 0:03:00]} 2. Nf3 {[%clk 0:03:00]}  a6 {[%clk 0:03:00]} 3. g3 {[%clk 0:02:59]}  b5 {[%clk 0:03:00]} 4. Bg2 {[%clk 0:02:57]}  Bb7 {[%clk 0:03:00]} 5. O-O {[%clk 0:02:57]}  d6 {[%clk 0:03:00]} 6. Re1 {[%clk 0:02:57]}  e6 {[%clk 0:03:00]} 7. a4 {[%clk 0:02:55]}  Nf6 {[%clk 0:02:58]} 8. d3 {[%clk 0:02:40]}  Be7 {[%clk 0:02:58]} 9. e5 {[%clk 0:02:35]}  dxe5 {[%clk 0:02:57]} 10. Nxe5 {[%clk 0:02:36]}  Bxg2 {[%clk 0:02:57]} 11. Kxg2 {[%clk 0:02:37]}  Nbd7 {[%clk 0:02:34]} 12. Nxd7 {[%clk 0:02:35]}  Nxd7 {[%clk 0:02:32]} 13. Nc3 {[%clk 0:02:29]}  b4 {[%clk 0:02:30]} 14. Ne4 {[%clk 0:02:29]}  O-O {[%clk 0:02:30]} 15. b3 {[%clk 0:02:27]}  Nf6 {[%clk 0:02:30]} 16. Bb2 {[%clk 0:02:24]}  Nxe4 {[%clk 0:02:30]} 17. Rxe4 {[%clk 0:02:25]}  Bf6 {[%clk 0:02:29]} 18. Bxf6 {[%clk 0:02:18]}  Qxf6 {[%clk 0:02:30]} 19. Rb1 {[%clk 0:02:18]}  Rfd8 {[%clk 0:02:29]} 20. Qe2 {[%clk 0:02:17]}  Rd5 {[%clk 0:02:28]} 21. Qe3 {[%clk 0:02:16]}  h5 {[%clk 0:02:24]} 22. Re1 {[%clk 0:02:09]}  Rad8 {[%clk 0:02:23]} 23. Rc4 {[%clk 0:02:06]}  Qf5 {[%clk 0:02:22]} 24. h3 {[%clk 0:02:01]}  a5 {[%clk 0:02:18]} 25. Rf4 {[%clk 0:01:58]}  Qg6 {[%clk 0:02:14]} 26. Qf3 {[%clk 0:01:58]}  R8d7 {[%clk 0:02:05]} 27. Ree4 {[%clk 0:01:57]}  Qg5 {[%clk 0:01:42]} 28. Qe3 {[%clk 0:01:49]}  Qg6 {[%clk 0:01:31]} 29. Re5 {[%clk 0:01:43]}  Qh6 {[%clk 0:01:08]} 30. h4 {[%clk 0:01:40]}  R7d6 {[%clk 0:01:05]} 31. Kh2 {[%clk 0:01:25]}  g6 {[%clk 0:01:03]} 32. Kg2 {[%clk 0:01:13]}  Qg7 {[%clk 0:01:03]} 33. Rfe4 {[%clk 0:01:13]}  Qf6 {[%clk 0:01:00]} 34. f3 {[%clk 0:00:59]}  Kg7 {[%clk 0:00:55]} 35. f4 {[%clk 0:00:55]}  Rd7 {[%clk 0:00:50]} 36. Kh2 {[%clk 0:00:52]}  Kh7 {[%clk 0:00:45]} 37. Kh3 {[%clk 0:00:46]}  Rd8 {[%clk 0:00:41]} 38. Kg2 {[%clk 0:00:44]}  R8d7 {[%clk 0:00:38]} 39. Rg5 {[%clk 0:00:44]}  Rxg5 {[%clk 0:00:23]} 40. hxg5 {[%clk 0:00:45]}  Qe7 {[%clk 0:00:20]} 41. Re5 {[%clk 0:00:45]}  Rc7 {[%clk 0:00:21]} 42. Qf3 {[%clk 0:00:36]}  Qd8 {[%clk 0:00:18]} 43. Kh3 {[%clk 0:00:29]}  Kg7 {[%clk 0:00:18]} 44. g4 {[%clk 0:00:29]}  hxg4+ {[%clk 0:00:18]} 45. Kxg4 {[%clk 0:00:30]}  Qd4 {[%clk 0:00:18]} 46. Re2 {[%clk 0:00:29]}  Rc8 {[%clk 0:00:17]} 47. Qe3 {[%clk 0:00:27]}  Qd5 {[%clk 0:00:17]} 48. Qe5+ {[%clk 0:00:25]}  Qxe5 {[%clk 0:00:17]} 49. Rxe5 {[%clk 0:00:26]}  Kf8 {[%clk 0:00:17]} 50. Kf3 {[%clk 0:00:25]}  Ke7 {[%clk 0:00:18]} 51. Ke4 {[%clk 0:00:19]}  Kd6 {[%clk 0:00:18]} 52. d4 {[%clk 0:00:20]}  cxd4 {[%clk 0:00:17]} 53. Rxa5 {[%clk 0:00:19]}  Rxc2 {[%clk 0:00:17]} 54. Rb5 {[%clk 0:00:20]}  d3 {[%clk 0:00:16]} 55. Rxb4 {[%clk 0:00:19]}  d2 {[%clk 0:00:17]} 56. Rd4+ {[%clk 0:00:19]}  Kc5 {[%clk 0:00:17]} 57. b4+ {[%clk 0:00:19]}  Kc6 {[%clk 0:00:17]} 58. Ke3 {[%clk 0:00:18]}  Rb2 {[%clk 0:00:13]} 59. b5+ {[%clk 0:00:17]}  Kb6 {[%clk 0:00:13]} 60. Rxd2 {[%clk 0:00:17]}  Rb4 {[%clk 0:00:12]} 61. Rd4 {[%clk 0:00:17]}  Rb1 {[%clk 0:00:13]} 62. Rd7 {[%clk 0:00:17]}  Re1+ {[%clk 0:00:13]} 63. Kf3 {[%clk 0:00:17]}  Rf1+ {[%clk 0:00:13]} 64. Ke3 {[%clk 0:00:17]}  Re1+ {[%clk 0:00:13]} 65. Kf3 {[%clk 0:00:17]}  Rf1+ {[%clk 0:00:14]} 66. Kg3 {[%clk 0:00:17]}  Rg1+ {[%clk 0:00:13]} 67. Kf2 {[%clk 0:00:18]}  Ra1 {[%clk 0:00:13]} 68. Rxf7 {[%clk 0:00:18]}  Rxa4 {[%clk 0:00:14]} 69. Rf6 {[%clk 0:00:18]}  Kxb5 {[%clk 0:00:14]} 70. Ke3 {[%clk 0:00:19]}  Kc5 {[%clk 0:00:14]} 71. Rxe6 {[%clk 0:00:19]}  Kd5 {[%clk 0:00:12]} 72. Rxg6 {[%clk 0:00:19]}  Ra3+ {[%clk 0:00:13]} 73. Kf2 {[%clk 0:00:19]}  Ke4 {[%clk 0:00:13]} 74. Rf6 {[%clk 0:00:19]}  Rb3 {[%clk 0:00:06]} 75. g6 {[%clk 0:00:18]}  Rb8 {[%clk 0:00:06]} 76. Rf7 {[%clk 0:00:17]}  Rb6 {[%clk 0:00:04]} 77. f5 {[%clk 0:00:16]}  Ke5 {[%clk 0:00:03]} 78. g7 {[%clk 0:00:16]}  Rb2+ {[%clk 0:00:04]} 79. Ke3 {[%clk 0:00:15]}  Rb3+ {[%clk 0:00:04]} 80. Kf2 {[%clk 0:00:16]}  Rb2+ {[%clk 0:00:04]} 81. Kf3 {[%clk 0:00:16]}  Rb3+ {[%clk 0:00:04]} 82. Kg4 {[%clk 0:00:17]}  Rb1 {[%clk 0:00:05]} 83. Kg5 {[%clk 0:00:16]}  Rg1+ {[%clk 0:00:05]} 84. Kh6 {[%clk 0:00:17]}  Rh1+ {[%clk 0:00:05]} 85. Kg6 {[%clk 0:00:17]}  Rg1+ {[%clk 0:00:05]} 86. Kh7 {[%clk 0:00:17]}  Rh1+ {[%clk 0:00:06]} 87. Kg8 {[%clk 0:00:18]}  Rg1 {[%clk 0:00:01]} 88. Kf8 {[%clk 0:00:17]} 1-0


[Site "https://www.chess.com"]

[Event "Titled Tuesday Blitz August 1 Early 2023"]
[White "Hua, Lefong"]
[Black "Ter-Sahakyan, Samvel"]
[WhiteFideId "2602253"]
[BlackFideId "13302531"]
[WhiteElo "2650"]
[BlackElo "2846"]
[Result "0-1"]
[Round "4"]
[TimeControl "180+1"]
[Date "2023.08.01"]
[WhiteClock "0:00:00"]
[BlackClock "0:00:02"]
[Board "29"]

1. d4 {[%clk 0:03:00]}  Nf6 {[%clk 0:02:59]} 2. c4 {[%clk 0:03:01]}  e6 {[%clk 0:03:00]} 3. Nc3 {[%clk 0:03:01]}  Bb4 {[%clk 0:02:59]} 4. f3 {[%clk 0:03:01]}  c5 {[%clk 0:02:52]} 5. a3 {[%clk 0:02:59]}  Bxc3+ {[%clk 0:02:46]} 6. bxc3 {[%clk 0:03:00]}  Nc6 {[%clk 0:02:43]} 7. e4 {[%clk 0:02:58]}  d6 {[%clk 0:02:38]} 8. Be3 {[%clk 0:02:54]}  O-O {[%clk 0:02:35]} 9. Bd3 {[%clk 0:02:52]}  Qa5 {[%clk 0:02:25]} 10. Qd2 {[%clk 0:02:47]}  cxd4 {[%clk 0:02:19]} 11. cxd4 {[%clk 0:02:46]}  Qxd2+ {[%clk 0:02:19]} 12. Kxd2 {[%clk 0:02:46]}  Na5 {[%clk 0:02:19]} 13. Rb1 {[%clk 0:02:32]}  b6 {[%clk 0:02:19]} 14. Ne2 {[%clk 0:02:26]}  Ba6 {[%clk 0:02:19]} 15. Rhc1 {[%clk 0:02:27]}  Rfc8 {[%clk 0:02:18]} 16. c5 {[%clk 0:02:20]}  Bxd3 {[%clk 0:02:18]} 17. Kxd3 {[%clk 0:02:20]}  bxc5 {[%clk 0:01:59]} 18. dxc5 {[%clk 0:02:17]}  d5 {[%clk 0:01:48]} 19. exd5 {[%clk 0:01:57]}  Nxd5 {[%clk 0:01:47]} 20. Nf4 {[%clk 0:01:43]}  Ne7 {[%clk 0:01:40]} 21. Ke2 {[%clk 0:01:30]}  e5 {[%clk 0:01:38]} 22. Nd3 {[%clk 0:01:28]}  f6 {[%clk 0:01:38]} 23. Rb5 {[%clk 0:01:25]}  Nac6 {[%clk 0:01:36]} 24. Nb4 {[%clk 0:01:19]}  Rab8 {[%clk 0:01:25]} 25. Nxc6 {[%clk 0:01:17]}  Nxc6 {[%clk 0:01:24]} 26. Rcb1 {[%clk 0:01:15]}  Rxb5 {[%clk 0:01:24]} 27. Rxb5 {[%clk 0:01:15]}  Rc7 {[%clk 0:01:24]} 28. Rb1 {[%clk 0:01:06]}  Kf7 {[%clk 0:01:23]} 29. Kd3 {[%clk 0:01:05]}  Ke6 {[%clk 0:01:09]} 30. Kc3 {[%clk 0:01:03]}  Rd7 {[%clk 0:01:08]} 31. Rb2 {[%clk 0:00:51]}  g5 {[%clk 0:00:58]} 32. g4 {[%clk 0:00:48]}  h6 {[%clk 0:00:55]} 33. h4 {[%clk 0:00:44]}  Rd1 {[%clk 0:00:49]} 34. hxg5 {[%clk 0:00:42]}  hxg5 {[%clk 0:00:49]} 35. Rb7 {[%clk 0:00:39]}  Rf1 {[%clk 0:00:49]} 36. Rc7 {[%clk 0:00:35]}  Ne7 {[%clk 0:00:47]} 37. Rxa7 {[%clk 0:00:33]}  Rxf3 {[%clk 0:00:43]} 38. Kd2 {[%clk 0:00:32]}  Nd5 {[%clk 0:00:36]} 39. Ra6+ {[%clk 0:00:23]}  Ke7 {[%clk 0:00:36]} 40. Ra7+ {[%clk 0:00:18]}  Ke8 {[%clk 0:00:32]} 41. Bg1 {[%clk 0:00:17]}  e4 {[%clk 0:00:18]} 42. c6 {[%clk 0:00:14]}  Rd3+ {[%clk 0:00:18]} 43. Ke2 {[%clk 0:00:11]}  Rc3 {[%clk 0:00:18]} 44. Ra8+ {[%clk 0:00:11]}  Ke7 {[%clk 0:00:18]} 45. Ra7+ {[%clk 0:00:09]}  Ke6 {[%clk 0:00:09]} 46. Ra6 {[%clk 0:00:06]}  Ke5 {[%clk 0:00:09]} 47. Bh2+ {[%clk 0:00:05]}  Nf4+ {[%clk 0:00:10]} 48. Kd2 {[%clk 0:00:06]}  Rc4 {[%clk 0:00:06]} 49. Bg1 {[%clk 0:00:06]}  Nd5 {[%clk 0:00:04]} 50. Ba7 {[%clk 0:00:06]}  Kd6 {[%clk 0:00:02]} 51. Bb8+ {[%clk 0:00:05]}  Ke7 {[%clk 0:00:03]} 52. Ke2 {[%clk 0:00:03]}  Rc3 {[%clk 0:00:03]} 53. Ra7+ {[%clk 0:00:02]}  Kd8 {[%clk 0:00:02]} 54. Bd6 {[%clk 0:00:00]}  Ke8 {[%clk 0:00:02]} 0-1


[Site "https://www.chess.com"]

[Event "Titled Tuesday Blitz August 1 Early 2023"]
[White "Havlik, Jan"]
[Black "Aradhya, Garg"]
[WhiteFideId "319783"]
[BlackFideId "25006746"]
[WhiteElo "2615"]
[BlackElo "2759"]
[Result "1/2-1/2"]
[Round "4"]
[TimeControl "180+1"]
[Date "2023.08.01"]
[WhiteClock "0:01:35"]
[BlackClock "0:00:58"]
[Board "32"]

1. e4 {[%clk 0:03:00]}  e5 {[%clk 0:02:59]} 2. Bc4 {[%clk 0:03:01]}  Nf6 {[%clk 0:02:59]} 3. d4 {[%clk 0:03:01]}  exd4 {[%clk 0:02:57]} 4. Nf3 {[%clk 0:03:02]}  Nc6 {[%clk 0:02:53]} 5. O-O {[%clk 0:03:02]}  Nxe4 {[%clk 0:02:53]} 6. Re1 {[%clk 0:03:02]}  d5 {[%clk 0:02:53]} 7. Bxd5 {[%clk 0:03:03]}  Qxd5 {[%clk 0:02:53]} 8. Nc3 {[%clk 0:03:04]}  Qh5 {[%clk 0:02:53]} 9. Nxe4 {[%clk 0:03:04]}  Be6 {[%clk 0:02:53]} 10. Bg5 {[%clk 0:03:04]}  Bd6 {[%clk 0:02:52]} 11. Nxd6+ {[%clk 0:03:04]}  cxd6 {[%clk 0:02:52]} 12. Bf4 {[%clk 0:03:04]}  Qd5 {[%clk 0:02:49]} 13. c3 {[%clk 0:03:04]}  O-O {[%clk 0:02:49]} 14. Nxd4 {[%clk 0:03:04]}  Nxd4 {[%clk 0:02:49]} 15. Qxd4 {[%clk 0:03:05]}  Qxd4 {[%clk 0:02:49]} 16. cxd4 {[%clk 0:03:06]}  Rfd8 {[%clk 0:02:49]} 17. b3 {[%clk 0:03:02]}  h6 {[%clk 0:02:49]} 18. Rac1 {[%clk 0:03:03]}  a5 {[%clk 0:02:48]} 19. f3 {[%clk 0:03:03]}  a4 {[%clk 0:02:47]} 20. Rc7 {[%clk 0:02:59]}  axb3 {[%clk 0:02:45]} 21. axb3 {[%clk 0:02:58]}  Bxb3 {[%clk 0:02:37]} 22. Rxb7 {[%clk 0:02:57]}  Be6 {[%clk 0:02:36]} 23. Rb6 {[%clk 0:02:50]}  d5 {[%clk 0:02:32]} 24. Kf2 {[%clk 0:02:40]}  Ra2+ {[%clk 0:02:31]} 25. Re2 {[%clk 0:02:40]}  Ra4 {[%clk 0:02:31]} 26. Be5 {[%clk 0:02:37]}  Bf5 {[%clk 0:02:26]} 27. Reb2 {[%clk 0:02:37]}  f6 {[%clk 0:02:24]} 28. Rb8 {[%clk 0:02:26]}  Rxb8 {[%clk 0:02:23]} 29. Rxb8+ {[%clk 0:02:25]}  Kh7 {[%clk 0:02:22]} 30. Bd6 {[%clk 0:02:24]}  Rxd4 {[%clk 0:02:21]} 31. Rb7 {[%clk 0:02:24]}  Rd2+ {[%clk 0:02:14]} 32. Kg3 {[%clk 0:02:24]}  Kg8 {[%clk 0:01:55]} 33. Rb8+ {[%clk 0:02:16]}  Kf7 {[%clk 0:01:55]} 34. Rb7+ {[%clk 0:02:17]}  Kg8 {[%clk 0:01:54]} 35. Rb8+ {[%clk 0:02:17]}  Kh7 {[%clk 0:01:54]} 36. Rb7 {[%clk 0:02:17]}  Re2 {[%clk 0:01:18]} 37. Bf8 {[%clk 0:02:13]}  Re8 {[%clk 0:01:18]} 38. Rxg7+ {[%clk 0:01:56]}  Kh8 {[%clk 0:01:17]} 39. Rf7 {[%clk 0:01:57]}  Kg8 {[%clk 0:01:17]} 40. Rxf6 {[%clk 0:01:55]}  Rxf8 {[%clk 0:01:17]} 41. Rd6 {[%clk 0:01:55]}  Kg7 {[%clk 0:01:15]} 42. Rxd5 {[%clk 0:01:55]}  Bg6 {[%clk 0:01:13]} 43. Rd6 {[%clk 0:01:54]}  Rf6 {[%clk 0:01:13]} 44. Rxf6 {[%clk 0:01:50]}  Kxf6 {[%clk 0:01:14]} 45. Kf4 {[%clk 0:01:51]}  Bd3 {[%clk 0:01:14]} 46. g4 {[%clk 0:01:49]}  Be2 {[%clk 0:01:11]} 47. h4 {[%clk 0:01:47]}  Kg6 {[%clk 0:01:11]} 48. Ke3 {[%clk 0:01:45]}  Bd1 {[%clk 0:01:11]} 49. Kf4 {[%clk 0:01:45]}  Ba4 {[%clk 0:01:03]} 50. Kg3 {[%clk 0:01:38]}  Bd1 {[%clk 0:00:57]} 51. f4 {[%clk 0:01:35]}  Be2 {[%clk 0:00:57]} 52. h5+ {[%clk 0:01:34]}  Kg7 {[%clk 0:00:56]} 53. g5 {[%clk 0:01:34]}  Bxh5 {[%clk 0:00:56]} 54. gxh6+ {[%clk 0:01:34]}  Kxh6 {[%clk 0:00:57]} 55. f5 {[%clk 0:01:34]}  Kg5 {[%clk 0:00:58]} 56. f6 {[%clk 0:01:35]}  Kxf6 {[%clk 0:00:58]} 1/2-1/2


[Site "https://www.chess.com"]

[Event "Titled Tuesday Blitz August 1 Early 2023"]
[White "NovoselovRoman"]
[Black "djokovic74"]
[WhiteElo "2608"]
[BlackElo "2759"]
[Result "0-1"]
[Round "4"]
[TimeControl "180+1"]
[Date "2023.08.01"]
[WhiteClock "0:00:08"]
[BlackClock "0:00:11"]
[Board "33"]

1. e4 {[%clk 0:03:00]}  e6 {[%clk 0:02:59]} 2. d4 {[%clk 0:03:00]}  d5 {[%clk 0:03:00]} 3. Nc3 {[%clk 0:03:01]}  dxe4 {[%clk 0:02:58]} 4. Nxe4 {[%clk 0:03:01]}  Bd7 {[%clk 0:02:59]} 5. Nf3 {[%clk 0:02:59]}  Bc6 {[%clk 0:02:58]} 6. Bd3 {[%clk 0:02:59]}  Nd7 {[%clk 0:02:59]} 7. Qe2 {[%clk 0:02:55]}  Ngf6 {[%clk 0:02:57]} 8. O-O {[%clk 0:02:51]}  Bxe4 {[%clk 0:02:52]} 9. Bxe4 {[%clk 0:02:52]}  Nxe4 {[%clk 0:02:42]} 10. Qxe4 {[%clk 0:02:52]}  c6 {[%clk 0:02:41]} 11. Bg5 {[%clk 0:02:51]}  Be7 {[%clk 0:02:41]} 12. Bxe7 {[%clk 0:02:41]}  Qxe7 {[%clk 0:02:40]} 13. Rfe1 {[%clk 0:02:35]}  O-O {[%clk 0:02:39]} 14. c3 {[%clk 0:02:28]}  Nf6 {[%clk 0:02:38]} 15. Qh4 {[%clk 0:02:07]}  Qc7 {[%clk 0:02:34]} 16. Re5 {[%clk 0:01:58]}  h6 {[%clk 0:02:07]} 17. Rae1 {[%clk 0:01:33]}  Rfd8 {[%clk 0:02:02]} 18. g4 {[%clk 0:01:21]}  Qe7 {[%clk 0:01:25]} 19. Qg3 {[%clk 0:01:09]}  Nh7 {[%clk 0:01:12]} 20. h4 {[%clk 0:01:05]}  Rd5 {[%clk 0:00:57]} 21. g5 {[%clk 0:01:04]}  hxg5 {[%clk 0:00:48]} 22. hxg5 {[%clk 0:01:04]}  Rxe5 {[%clk 0:00:48]} 23. Rxe5 {[%clk 0:01:03]}  Nf8 {[%clk 0:00:48]} 24. Nh4 {[%clk 0:00:46]}  Qd7 {[%clk 0:00:43]} 25. Re3 {[%clk 0:00:35]}  Qd5 {[%clk 0:00:31]} 26. b3 {[%clk 0:00:30]}  Rd8 {[%clk 0:00:27]} 27. Re5 {[%clk 0:00:27]}  Qd6 {[%clk 0:00:22]} 28. Qe3 {[%clk 0:00:25]}  Qa3 {[%clk 0:00:17]} 29. Qd2 {[%clk 0:00:12]}  Rd5 {[%clk 0:00:17]} 30. Nf3 {[%clk 0:00:10]}  Ng6 {[%clk 0:00:11]} 31. Rxd5 {[%clk 0:00:09]}  cxd5 {[%clk 0:00:12]} 32. c4 {[%clk 0:00:09]}  dxc4 {[%clk 0:00:12]} 33. bxc4 {[%clk 0:00:09]}  Qxf3 {[%clk 0:00:12]} 34. d5 {[%clk 0:00:08]}  Nf4 {[%clk 0:00:11]} 35. Kf1 {[%clk 0:00:08]}  Qh1# {[%clk 0:00:11]} 0-1


[Site "https://www.chess.com"]

[Event "Titled Tuesday Blitz August 1 Early 2023"]
[White "Amilal Munkhdalai"]
[Black "Dinosaurio_1975"]
[WhiteFideId "4903250"]
[WhiteElo "2729"]
[BlackElo "2561"]
[Result "1-0"]
[Round "4"]
[TimeControl "180+1"]
[Date "2023.08.01"]
[WhiteClock "0:00:30"]
[BlackClock "0:00:00"]
[Board "35"]

1. e4 {[%clk 0:02:59]}  c6 {[%clk 0:02:58]} 2. d4 {[%clk 0:02:59]}  d5 {[%clk 0:02:59]} 3. e5 {[%clk 0:02:58]}  c5 {[%clk 0:02:59]} 4. dxc5 {[%clk 0:02:55]}  e6 {[%clk 0:02:59]} 5. Be3 {[%clk 0:02:55]}  Nd7 {[%clk 0:02:56]} 6. f4 {[%clk 0:02:51]}  Nxc5 {[%clk 0:02:54]} 7. c3 {[%clk 0:02:47]}  Bd7 {[%clk 0:02:53]} 8. Nd2 {[%clk 0:02:47]}  Rc8 {[%clk 0:02:53]} 9. Ngf3 {[%clk 0:02:47]}  h5 {[%clk 0:02:48]} 10. g3 {[%clk 0:02:46]}  Nh6 {[%clk 0:02:48]} 11. Nd4 {[%clk 0:02:44]}  Ng4 {[%clk 0:02:20]} 12. Bg1 {[%clk 0:02:43]}  Na4 {[%clk 0:01:35]} 13. h3 {[%clk 0:02:27]}  Nh6 {[%clk 0:01:33]} 14. Rb1 {[%clk 0:02:22]}  Bc5 {[%clk 0:01:24]} 15. Qxh5 {[%clk 0:02:17]}  Qb6 {[%clk 0:01:10]} 16. N2b3 {[%clk 0:02:17]}  g6 {[%clk 0:01:01]} 17. Qd1 {[%clk 0:02:12]}  Nf5 {[%clk 0:00:54]} 18. Nxc5 {[%clk 0:01:58]}  Nxc5 {[%clk 0:00:48]} 19. Nxf5 {[%clk 0:01:57]}  gxf5 {[%clk 0:00:49]} 20. b4 {[%clk 0:01:55]}  d4 {[%clk 0:00:39]} 21. bxc5 {[%clk 0:01:48]}  Qc6 {[%clk 0:00:39]} 22. Rh2 {[%clk 0:01:46]}  Qe4+ {[%clk 0:00:39]} 23. Re2 {[%clk 0:01:44]}  Qf3 {[%clk 0:00:39]} 24. Qxd4 {[%clk 0:01:38]}  Qxg3+ {[%clk 0:00:38]} 25. Bf2 {[%clk 0:01:38]}  Qf3 {[%clk 0:00:37]} 26. Re3 {[%clk 0:01:29]}  Qh1 {[%clk 0:00:33]} 27. Rg3 {[%clk 0:01:08]}  Bc6 {[%clk 0:00:28]} 28. Rg1 {[%clk 0:01:05]}  Qf3 {[%clk 0:00:27]} 29. Bb5 {[%clk 0:01:01]}  Rd8 {[%clk 0:00:24]} 30. Qe3 {[%clk 0:00:56]}  Qd5 {[%clk 0:00:14]} 31. Bxc6+ {[%clk 0:00:55]}  bxc6 {[%clk 0:00:14]} 32. Qe2 {[%clk 0:00:46]}  Qd7 {[%clk 0:00:03]} 33. Rd1 {[%clk 0:00:39]}  Qc7 {[%clk 0:00:03]} 34. Rxd8+ {[%clk 0:00:38]}  Qxd8 {[%clk 0:00:04]} 35. Qf3 {[%clk 0:00:33]}  Qc8 {[%clk 0:00:03]} 36. Bh4 {[%clk 0:00:30]}  Qa6 {[%clk 0:00:02]} 37. Bf6 {[%clk 0:00:30]}  Rf8 {[%clk 0:00:00]} 38. Qd1 {[%clk 0:00:30]} 1-0


[Site "https://www.chess.com"]

[Event "Titled Tuesday Blitz August 1 Early 2023"]
[White "Dau Khuong Duy"]
[Black "Thomforde-Toates, Noah"]
[WhiteFideId "12424722"]
[BlackFideId "30951992"]
[WhiteElo "2880"]
[BlackElo "2586"]
[Result "0-1"]
[Round "4"]
[TimeControl "180+1"]
[Date "2023.08.01"]
[WhiteClock "0:00:05"]
[BlackClock "0:00:20"]
[Board "45"]

1. c4 {[%clk 0:03:00]}  Nf6 {[%clk 0:02:58]} 2. Nc3 {[%clk 0:03:00]}  d6 {[%clk 0:02:58]} 3. g3 {[%clk 0:02:57]}  g6 {[%clk 0:02:58]} 4. Bg2 {[%clk 0:02:57]}  Bg7 {[%clk 0:02:58]} 5. e3 {[%clk 0:02:57]}  O-O {[%clk 0:02:56]} 6. Nge2 {[%clk 0:02:58]}  Nc6 {[%clk 0:02:51]} 7. O-O {[%clk 0:02:57]}  e5 {[%clk 0:02:51]} 8. b3 {[%clk 0:02:56]}  Be6 {[%clk 0:02:49]} 9. d4 {[%clk 0:02:55]}  exd4 {[%clk 0:02:45]} 10. exd4 {[%clk 0:02:56]}  d5 {[%clk 0:02:45]} 11. Ba3 {[%clk 0:02:43]}  Re8 {[%clk 0:02:42]} 12. Nf4 {[%clk 0:02:35]}  Bg4 {[%clk 0:02:16]} 13. f3 {[%clk 0:02:27]}  Be6 {[%clk 0:02:15]} 14. Nxe6 {[%clk 0:02:20]}  Rxe6 {[%clk 0:02:15]} 15. f4 {[%clk 0:02:16]}  Re3 {[%clk 0:01:58]} 16. Qd2 {[%clk 0:01:09]}  Rxc3 {[%clk 0:01:51]} 17. Qxc3 {[%clk 0:01:10]}  Ne4 {[%clk 0:01:51]} 18. Qf3 {[%clk 0:01:05]}  Nd2 {[%clk 0:01:39]} 19. Qxd5 {[%clk 0:01:03]}  Bxd4+ {[%clk 0:01:36]} 20. Kh1 {[%clk 0:01:03]}  Nxf1 {[%clk 0:01:32]} 21. Qxd8+ {[%clk 0:00:57]}  Rxd8 {[%clk 0:01:31]} 22. Rxf1 {[%clk 0:00:58]}  Bf6 {[%clk 0:01:25]} 23. Bd5 {[%clk 0:00:53]}  Be7 {[%clk 0:01:01]} 24. Bxe7 {[%clk 0:00:20]}  Nxe7 {[%clk 0:01:02]} 25. Bxb7 {[%clk 0:00:21]}  Rd2 {[%clk 0:01:01]} 26. Re1 {[%clk 0:00:17]}  Kf8 {[%clk 0:00:59]} 27. a3 {[%clk 0:00:10]}  Nf5 {[%clk 0:00:53]} 28. Be4 {[%clk 0:00:09]}  Nd4 {[%clk 0:00:53]} 29. b4 {[%clk 0:00:09]}  Ra2 {[%clk 0:00:52]} 30. Re3 {[%clk 0:00:09]}  f5 {[%clk 0:00:43]} 31. Bd5 {[%clk 0:00:06]}  Nc2 {[%clk 0:00:43]} 32. Re6 {[%clk 0:00:07]}  Rxa3 {[%clk 0:00:38]} 33. Rf6+ {[%clk 0:00:07]}  Ke8 {[%clk 0:00:35]} 34. Bg8 {[%clk 0:00:05]}  Ne3 {[%clk 0:00:30]} 35. h3 {[%clk 0:00:05]}  Ra1+ {[%clk 0:00:28]} 36. Kh2 {[%clk 0:00:05]}  Ra2+ {[%clk 0:00:28]} 37. Kg1 {[%clk 0:00:06]}  Rg2+ {[%clk 0:00:27]} 38. Kh1 {[%clk 0:00:06]}  Rxg3 {[%clk 0:00:28]} 39. Bxh7 {[%clk 0:00:06]}  Rxh3+ {[%clk 0:00:28]} 40. Kg1 {[%clk 0:00:05]}  Rxh7 {[%clk 0:00:29]} 41. Rxg6 {[%clk 0:00:06]}  Rd7 {[%clk 0:00:26]} 42. Re6+ {[%clk 0:00:05]}  Re7 {[%clk 0:00:26]} 43. Ra6 {[%clk 0:00:06]}  Nxc4 {[%clk 0:00:26]} 44. Rxa7 {[%clk 0:00:06]}  Kd7 {[%clk 0:00:25]} 45. Kf2 {[%clk 0:00:06]}  Re4 {[%clk 0:00:25]} 46. Kg3 {[%clk 0:00:06]}  Nd6 {[%clk 0:00:25]} 47. Ra4 {[%clk 0:00:04]}  Rc4 {[%clk 0:00:20]} 48. Kf3 {[%clk 0:00:02]}  Rc3+ {[%clk 0:00:21]} 49. Ke2 {[%clk 0:00:02]}  Ne4 {[%clk 0:00:20]} 50. Ra5 {[%clk 0:00:02]}  Rb3 {[%clk 0:00:20]} 51. Rd5+ {[%clk 0:00:02]}  Ke6 {[%clk 0:00:19]} 52. Re5+ {[%clk 0:00:03]}  Kf6 {[%clk 0:00:19]} 53. b5 {[%clk 0:00:03]}  Rxb5 {[%clk 0:00:18]} 54. Re8 {[%clk 0:00:04]}  Rb2+ {[%clk 0:00:18]} 55. Ke3 {[%clk 0:00:04]}  Rb3+ {[%clk 0:00:18]} 56. Kd4 {[%clk 0:00:05]}  c5+ {[%clk 0:00:18]} 57. Kd5 {[%clk 0:00:04]}  Rd3+ {[%clk 0:00:18]} 58. Kc6 {[%clk 0:00:04]}  c4 {[%clk 0:00:19]} 59. Rf8+ {[%clk 0:00:05]}  Kg6 {[%clk 0:00:19]} 60. Kb5 {[%clk 0:00:04]}  c3 {[%clk 0:00:19]} 61. Kb4 {[%clk 0:00:05]}  c2 {[%clk 0:00:19]} 62. Rc8 {[%clk 0:00:05]}  Rc3 {[%clk 0:00:20]} 63. Rg8+ {[%clk 0:00:05]}  Kh5 {[%clk 0:00:19]} 64. Rh8+ {[%clk 0:00:05]}  Kg4 {[%clk 0:00:20]} 65. Rg8+ {[%clk 0:00:05]}  Kxf4 {[%clk 0:00:20]} 0-1


[Site "https://www.chess.com"]